Cogmind - Beta 12 *** ADVENTURER MODE // 2023.03.18 @ 11:42:47 Player: soporte tecnico Result: Self-destructed Performance ------------- Evolutions (2) 1000 Regions Visited (7) 1400 Robots Destroyed (14) 70 Value Destroyed (185) 185 Prototype IDs (0) 0 Alien Tech Used (0) 0 Bonus (25) 25 TOTAL SCORE: 2680 Bonus ------- Follower Combat Kills 25 Cogmind --------- Core Integrity 538/550 Matter 260/300 Energy 66/100 System Corruption 0% Temperature Cool (0) Movement Walking (130) Location -8/Materials Parts ------- > --- POWER (2) -------- (None) > --- PROPULSION (3) --- Titanium Leg Titanium Leg Titanium Leg > --- UTILITY (4) ------ Small Storage Unit Signal Interpreter > --- WEAPON (2) ------- (None) > --- INVENTORY (8) ---- Titanium Leg Titanium Leg Titanium Leg Small Storage Unit Peak State ------------ > --- POWER ------------ Ion Engine > --- PROPULSION ------- Flight Unit Flight Unit Flight Unit > --- UTILITY ---------- Sensor Array Signal Interpreter Improved Terrain Scanner > --- WEAPON ----------- Improved Datajack > --- INVENTORY -------- Hover Unit Hover Unit Improved Datajack [Rating: 12] Favorites ----------- Power Ion Engine Engine Ion Engine Propulsion Flight Unit Leg Aluminum Leg Hover Unit Hover Unit Flight Unit Flight Unit Utility Signal Interpreter Device Sensor Array Storage Small Storage Unit Processor Signal Interpreter Weapon Light Assault Rifle Energy Gun Small Laser Ballistic Gun Light Assault Rifle Special Melee Weapon Improved Datajack Build | -11 -10 -10 -9 -9 -9 -8 -8 ------- Run | Jun Mat Min Mat Min Exi Min Mat Slots Evolved 4 | . . . 2 . . . 2 Power 1 | . . . . . . . 1 Propulsion 1 | . . . 1 . . . . Utility 2 | . . . 1 . . . 1 Weapon . | . . . . . . . . Parts Attached 25 | 7 8 . 4 . . 2 4 Power 1 | 1 . . . . . . . Engine 1 | 1 . . . . . . . Core . | . . . . . . . . Reactor . | . . . . . . . . Propulsion 13 | 2 5 . 1 . . 2 3 Treads . | . . . . . . . . Leg 7 | 2 2 . . . . . 3 Wheel . | . . . . . . . . Hover 2 | . . . . . . 2 . Flight 4 | . 3 . 1 . . . . Utility 6 | 2 2 . 1 . . . 1 Device 3 | 1 1 . 1 . . . . Storage 2 | 1 . . . . . . 1 Processor 1 | . 1 . . . . . . Hackware . | . . . . . . . . Protection . | . . . . . . . . Artifact . | . . . . . . . . Weapon 5 | 2 1 . 2 . . . . Energy Gun 1 | 1 . . . . . . . Energy Cannon . | . . . . . . . . Ballistic Gun 2 | 1 1 . . . . . . Ballistic Cannon . | . . . . . . . . Launcher . | . . . . . . . . Special Weapon . | . . . . . . . . Impact Weapon . | . . . . . . . . Slashing Weapon . | . . . . . . . . Piercing Weapon . | . . . . . . . . Special Melee Weapon 2 | . . . 2 . . . . Unidentified Prototypes . | . . . . . . . . Parts Lost 9 | . . . 2 . . 7 . Power 1 | . . . . . . 1 . Propulsion 5 | . . . 1 . . 4 . Utility 2 | . . . 1 . . 1 . Weapon 1 | . . . . . . 1 . Highest Loss Streak 7 | . . . 2 . . 7 . To Critical Strikes . | . . . . . . . . Average Slot Usage (%) 68 | . 88 85 78 66 66 38 39 Engine 10 | . 14 14 11 11 11 3 . Leg 7 | . 16 . . . . . 23 Flight 15 | . 9 28 26 22 22 6 . Device 10 | . 14 14 18 11 11 7 . Storage 3 | . 9 . . . . . 7 Processor 8 | . . 14 11 11 11 11 9 Energy Gun 2 | . 9 . . . . . . Ballistic Gun 5 | . 13 14 1 . . . . Special Melee Weapon 4 | . . . 9 11 11 3 . Naked Turns . | . . . . . . . . Heaviest Build 13 | 13 13 7 8 7 7 7 5 Greatest Support 51 | 20 20 8 12 8 8 12 51 Greatest Overweight (x) 4 | . 4 . . . . 1 1 Average Overweight (x) . | . . . . . . . . Largest Inventory Capacity 8 | 8 8 5 5 5 5 5 8 Average Capacity 5 | 7 7 5 5 5 5 5 7 Most Carried 5 | 3 5 5 5 3 4 4 5 Average Carried 2 | . 1 4 3 3 3 2 3 Final Capacity 8 | 8 5 5 5 5 5 5 8 Final Carried 5 | 1 5 4 3 3 4 2 4 Class Distribution -------------------- 50% | Mutant 45% | Scavenger-Mutant 4% | Scavenger-Scout Dominant Class ---------------- Mutant | -10/Materials Scavenger-Mutant | -10/Mines Scavenger-Scout | -9/Materials Scavenger-Mutant | -9/Mines Scavenger-Mutant | -9/Exiles Mutant | -8/Mines Mutant | -8/Materials Resources | -11 -10 -10 -9 -9 -9 -8 -8 ----------- Run | Jun Mat Min Mat Min Exi Min Mat Matter Collected 435 | 281 75 29 . 30 . 20 . Remotely . | . . . . . . . . Salvage Created 352 | 138 214 . . . . . . Parts 33 | 14 19 . . . . . . Haulers Intercepted . | . . . . . . . . Recyclers Shooed . | . . . . . . . . Parts Field Recycled . | . . . . . . . . Retrieved Matter . | . . . . . . . . Parts Self-Destructed . | . . . . . . . . Prevented . | . . . . . . . . Kills | -11 -10 -10 -9 -9 -9 -8 -8 ------- Run | Jun Mat Min Mat Min Exi Min Mat Combat Hostiles Destroyed 8 | . 8 . . . . . . Guns 8 | . 8 . . . . . . Classes Destroyed 6 | 2 4 . . . . . . Worker 1 | . 1 . . . . . . Tunneler 3 | 3 . . . . . . . Recycler 1 | 1 . . . . . . . Watcher 1 | . 1 . . . . . . Swarmer 6 | . 6 . . . . . . Grunt 2 | . 2 . . . . . . Best Kill Streak 6 | 2 6 . . . . . . Combat Bots Only 5 | . 5 . . . . . . Max Kills in Single Turn 2 | 1 2 . . . . . . Gunslinging 1 | . 1 . . . . . . Exploded . | . . . . . . . . Melee . | . . . . . . . . Uniques/NPCs Destroyed . | . . . . . . . . Combat | -11 -10 -10 -9 -9 -9 -8 -8 -------- Run | Jun Mat Min Mat Min Exi Min Mat Damage Taken 831 | . 132 70 118 4 . 401 106 Core 389 | . 31 20 54 4 . 268 12 Absorbed by Shields . | . . . . . . . . Core Remaining (%) 65 | 100 . 79 . . . 18 . Volleys Fired 35 | 11 24 . . . . . . Largest 2 | 2 2 . . . . . . Hottest 60 | 60 60 . . . . . . Shots Fired 61 | 22 39 . . . . . . Gun 61 | 22 39 . . . . . . Cannon . | . . . . . . . . Launcher . | . . . . . . . . Special . | . . . . . . . . Kinetic 35 | 11 24 . . . . . . Thermal 26 | 11 15 . . . . . . Explosive . | . . . . . . . . Electromagnetic . | . . . . . . . . Robot Hit Streak 15 | 9 15 . . . . . . Robot Miss Streak 3 | 1 3 . . . . . . Penetration Max . | . . . . . . . . Secondary Targets 2 | . 2 . . . . . . Max Gunslinging Chain 1 | . 1 . . . . . . Shots Hit Robots 46 | 16 27 . 3 . . . . Core Hits 21 | 6 14 . . . . 1 . Critical Kills . | . . . . . . . . Critical Parts Destroyed . | . . . . . . . . Critical Strikes . | . . . . . . . . Melee Attacks 5 | . . . 5 . . . . Impact . | . . . . . . . . Slashing . | . . . . . . . . Piercing . | . . . . . . . . Sneak Attacks . | . . . . . . . . Combat Hostiles . | . . . . . . . . Follow-up Attacks . | . . . . . . . . Damage Inflicted 428 | 161 259 . . . . 8 . Guns 420 | 161 259 . . . . . . Cannons . | . . . . . . . . Explosions . | . . . . . . . . Melee . | . . . . . . . . Ramming 8 | . . . . . . 8 . Kinetic 176 | 53 123 . . . . . . Thermal 244 | 108 136 . . . . . . Explosive . | . . . . . . . . Electromagnetic . | . . . . . . . . Impact . | . . . . . . . . Slashing . | . . . . . . . . Piercing . | . . . . . . . . Highest Corruption . | . . . . . . . . Average Corruption . | . . . . . . . . Corruption Purged . | . . . . . . . . Corruption Blocked . | . . . . . . . . Overload Shots . | . . . . . . . . Overflow Damage . | . . . . . . . . Projectiles . | . . . . . . . . Explosions . | . . . . . . . . Melee . | . . . . . . . . Knockbacks 1 | . . . . . . 1 . Impact 1 | . . . . . . 1 . Kinetic . | . . . . . . . . Secondary . | . . . . . . . . Self-Inflicted Damage 4 | . . . . . . 4 . Shots . | . . . . . . . . Rammed 3 | . . . . . . 3 . Targets Rammed 3 | . . . . . . 3 . Kicked . | . . . . . . . . Crushed . | . . . . . . . . Highest Temperature 91 | 40 91 5 . . . . 2 Average Temperature 31 | 20 38 4 . . . . 2 Received Heat Transfer 186 | . 51 51 18 . . 12 54 Siege Activations . | . . . . . . . . Robots Corrupted . | . . . . . . . . Combat Hostiles . | . . . . . . . . Parts Fried . | . . . . . . . . Impact Corruptions . | . . . . . . . . Robots Melted . | . . . . . . . . Combat Hostiles . | . . . . . . . . Parts Melted . | . . . . . . . . Heat Transferred 575 | 250 325 . . . . . . Parts Sabotaged . | . . . . . . . . Parts Stolen . | . . . . . . . . Parts Stripped . | . . . . . . . . Power Chain Reactions . | . . . . . . . . Missiles Intercepted . | . . . . . . . . Alert | -11 -10 -10 -9 -9 -9 -8 -8 ------- Run | Jun Mat Min Mat Min Exi Min Mat Peak Influence 213 | 20 213 114 117 95 . 65 61 Initial 69 | . 11 69 37 35 . . 16 Average 70 | 9 120 81 60 85 . 37 23 Maximum Alert Level 1 | . 1 . . . . . . Low Security (%) 88 | 100 65 100 100 100 . 100 100 Level 1 11 | . 34 . . . . . . Level 2 . | . . . . . . . . Level 3 . | . . . . . . . . Level 4 . | . . . . . . . . Level 5 . | . . . . . . . . High Security . | . . . . . . . . Max Security . | . . . . . . . . Squads Dispatched 6 | . . 1 2 . . . 3 Investigation . | . . . . . . . . Extermination . | . . . . . . . . Reinforcement 5 | . . . 2 . . . 3 Assault 1 | . . 1 . . . . . Garrison . | . . . . . . . . Intercept . | . . . . . . . . Searches Triggered . | . . . . . . . . Construction Impeded . | . . . . . . . . Haulers Reinforced . | . . . . . . . . Active Scanning Responses . | . . . . . . . . Cargo Convoy Interrupts . | . . . . . . . . Stealth | -11 -10 -10 -9 -9 -9 -8 -8 --------- Run | Jun Mat Min Mat Min Exi Min Mat Distress Signals 2 | . . . . . . . 2 Communications Jammed . | . . . . . . . . Distress Signals . | . . . . . . . . Times Spotted 59 | . 9 9 9 3 . 10 19 Peak Tracking Total 19 | . 3 5 7 3 . 5 19 Tactical Retreats 7 | . . 1 1 1 . 3 1 Traps | -11 -10 -10 -9 -9 -9 -8 -8 ------- Run | Jun Mat Min Mat Min Exi Min Mat Traps Triggered . | . . . . . . . . Indirectly . | . . . . . . . . Trap Hack Attempts . | . . . . . . . . Triggered . | . . . . . . . . Disarmed . | . . . . . . . . Reprogrammed . | . . . . . . . . Reused . | . . . . . . . . Traps Extracted . | . . . . . . . . Installed . | . . . . . . . . Triggered . | . . . . . . . . Machines | -11 -10 -10 -9 -9 -9 -8 -8 ---------- Run | Jun Mat Min Mat Min Exi Min Mat Machines Disabled . | . . . . . . . . Max in Single Turn . | . . . . . . . . Machines Repaired . | . . . . . . . . Machines Sabotaged . | . . . . . . . . Overloaded Fab Kills . | . . . . . . . . Hacking | -11 -10 -10 -9 -9 -9 -8 -8 --------- Run | Jun Mat Min Mat Min Exi Min Mat Machines Accessed 5 | . 1 . . . 4 . . Terminals 1 | . 1 . . . . . . Fabricators . | . . . . . . . . Repair Stations . | . . . . . . . . Recycling Units . | . . . . . . . . Scanalyzers . | . . . . . . . . Garrison Access . | . . . . . . . . Total Hacks 51 | . 2 . . . 49 . . Successful 50 | . 1 . . . 49 . . Failed 1 | . 1 . . . . . . Catastrophic . | . . . . . . . . Database Lockouts . | . . . . . . . . Manual . | . . . . . . . . Terminals 2 | . 2 . . . . . . Fabricators . | . . . . . . . . Repair Stations . | . . . . . . . . Recycling Units . | . . . . . . . . Scanalyzers . | . . . . . . . . Garrison Access . | . . . . . . . . Terminal Hacks 50 | . 1 . . . 49 . . Record 49 | . . . . . 49 . . Zone Layout 1 | . 1 . . . . . . Fabricator Hacks . | . . . . . . . . Repair Station Hacks . | . . . . . . . . Recycling Unit Hacks . | . . . . . . . . Scanalyzer . | . . . . . . . . Garrison Access Hacks . | . . . . . . . . Unauthorized Hacks . | . . . . . . . . Terminals . | . . . . . . . . Fabricators . | . . . . . . . . Repair Stations . | . . . . . . . . Recycling Units . | . . . . . . . . Scanalyzers . | . . . . . . . . Garrison Access . | . . . . . . . . Data Cores Recovered . | . . . . . . . . Used . | . . . . . . . . Hacking Detections 1 | . 1 . . . . . . Full Trace Events . | . . . . . . . . Feedback Events . | . . . . . . . . Feedback Blocked . | . . . . . . . . Robot Schematics Acquired . | . . . . . . . . Robots Built . | . . . . . . . . Authchips . | . . . . . . . . Time . | . . . . . . . . Total Robot Build Rating . | . . . . . . . . Part Schematics Acquired . | . . . . . . . . Parts Built . | . . . . . . . . Authchips . | . . . . . . . . Time . | . . . . . . . . Total Part Build Rating . | . . . . . . . . Parts Repaired . | . . . . . . . . Time . | . . . . . . . . Parts Recycled . | . . . . . . . . Recycled Matter . | . . . . . . . . Retrieved Matter . | . . . . . . . . Retrieved Components . | . . . . . . . . Parts Scanalyzed . | . . . . . . . . Part Schematics Acquired . | . . . . . . . . Parts Damaged . | . . . . . . . . Bothacking | -11 -10 -10 -9 -9 -9 -8 -8 ------------ Run | Jun Mat Min Mat Min Exi Min Mat Used RIF Installer . | . . . . . . . . Robots Hacked 2 | . . . 2 . . . . Non-combat 1 | . . . 1 . . . . Combat 1 | . . . 1 . . . . Robot Hacks Applied 2 | . . . 2 . . . . parse_system 2 | . . . 2 . . . . Relay Couplers Released . | . . . . . . . . Fabnet Peak Effective % . | . . . . . . . . Robots Rewired . | . . . . . . . . Allies Hacked . | . . . . . . . . Hacks Repelled . | . . . . . . . . Allies | -11 -10 -10 -9 -9 -9 -8 -8 -------- Run | Jun Mat Min Mat Min Exi Min Mat Total Allies 1 | . . 1 . . . . . Largest Group 1 | . . 1 . . . . . Highest-Rated Group 31 | . . 31 . . . . . Highest-Rated Ally 31 | . . 31 . . . . . Total Orders . | . . . . . . . . Ally Attacks 3 | . . 3 . . . . . Total Damage 43 | . . 43 . . . . . Kills 1 | . . 1 . . . . . Allies Corrupted . | . . . . . . . . Allies Melted . | . . . . . . . . Intel | -11 -10 -10 -9 -9 -9 -8 -8 ------- Run | Jun Mat Min Mat Min Exi Min Mat Robot Analysis Total . | . . . . . . . . Derelict Logs Recovered 2 | . . 1 . 1 . . . Drone Launches . | . . . . . . . . Drone Recoveries . | . . . . . . . . Exploration | -11 -10 -10 -9 -9 -9 -8 -8 ------------- Run | Jun Mat Min Mat Min Exi Min Mat Turns Passed 1380 | 138 338 132 64 69 374 132 133 Spaces Moved 2374 | 78 332 283 128 187 1007 237 122 Core 209 | 10 4 . . . . 90 105 Treads . | . . . . . . . . Legs 194 | 68 109 . . . . . 17 Wheels . | . . . . . . . . Hover 75 | . . . . . . 75 . Flight 1896 | . 219 283 128 187 1007 72 . Fastest Speed 34 | 50 37 37 34 37 37 37 50 Average Speed 49 | 111 74 37 35 37 37 53 96 Slowest Speed 280 | 120 280 37 37 37 37 120 130 Overloaded Moves . | . . . . . . . . Propulsion Burnouts . | . . . . . . . . Robots Hopped 8 | . 1 3 1 3 . . . Cave-ins Triggered . | . . . . . . . . Exploration Rate (%) 40 | 5 42 45 13 45 92 66 19 Regions Visited 7 Branch Regions 4 Pre-discovered Areas 1 | . . . . . 1 . . Known Exits Taken 6 | . 1 1 1 1 1 1 . Unknown Exits Taken 1 | 1 . . . . . . . Scrap Searched 1 | . . . . 1 . . . Spaces Dug . | . . . . . . . . Terrain Destroyed . | . . . . . . . . Melee . | . . . . . . . . Projectile . | . . . . . . . . AOE . | . . . . . . . . Terrain Rammed . | . . . . . . . . Walls Destroyed . | . . . . . . . . Machines Disabled . | . . . . . . . . Actions | -11 -10 -10 -9 -9 -9 -8 -8 --------- Run | Jun Mat Min Mat Min Exi Min Mat Total 2517 | 109 388 307 145 183 1007 241 137 Wait 48 | 6 8 25 6 . . . 3 Move 2351 | 77 329 276 125 180 1006 236 122 Hop 8 | . 1 3 1 3 . . . Pick Up 29 | 8 10 1 2 . 1 . 7 Fast Attach . | . . . . . . . . Attach 23 | 7 6 . 4 . . 2 4 Detach 2 | . 1 . 1 . . . . Swap 2 | . 2 . . . . . . Drop 11 | . 7 2 1 . . . 1 Fire 35 | 11 24 . . . . . . Melee 5 | . . . 5 . . . . Ram 3 | . . . . . . 3 . Kick . | . . . . . . . . Crush . | . . . . . . . . Escape Stasis . | . . . . . . . . Rewire . | . . . . . . . . Trap . | . . . . . . . . Miscellaneous . | . . . . . . . . Route ------- -11/Junkyard -10/Materials (discovered 2 exits: *Min x2) -10/Mines -9/Materials (discovered 2 exits: *Min / Sto) -9/Mines -9/Exiles (discovered 2 exits: *Min x2) -8/Mines -8/Materials History --------- Turn | Location | Event 3 | -11/Junkyard | Discovered new exit (range 15) 139 | -11/Junkyard | Entered Materials 183 | -10/Materials | Discovered new exit (range 8) 328 | -10/Materials | Build established: Mutant 380 | -10/Materials | Discovered new exit (range 12) 477 | -10/Materials | Identified exit to Mines 477 | -10/Materials | Entered Mines 478 | -10/Mines | Met a Derelict testing a Signal Generator 482 | -10/Mines | Found Signal Generator 554 | -10/Mines | A weapon hastily lodged in a ceiling crevice suddenly fell to the ground 605 | -10/Mines | Discovered new exit (range 8) 608 | -10/Mines | Identified exit to Materials 609 | -10/Mines | Entered Materials 609 | -9/Materials | Evolved 2 slots: Propulsion x1, Utility x1 610 | -9/Materials | Identified exit to Storage 670 | -9/Materials | Discovered new exit (range 7) 672 | -9/Materials | Identified exit to Mines 673 | -9/Materials | Entered Mines 710 | -9/Mines | Identified exit to Exiles 740 | -9/Mines | Deemed a non-threat by the Exiles lab entrance 742 | -9/Mines | Entered Exiles 752 | -9/Exiles | Met 8R-AWN 758 | -9/Exiles | Met EX-HEX 778 | -9/Exiles | Met EX-DEC 787 | -9/Exiles | Visited The Gauntlet 835 | -9/Exiles | Learned location of Zion (-7) 857 | -9/Exiles | Discovered new exit (range 10) 886 | -9/Exiles | Met EX-BIN 941 | -9/Exiles | Discovered new exit (range 14) 963 | -9/Exiles | Build established: Scavenger-Mutant 1072 | -9/Exiles | Identified exit to Mines 1116 | -9/Exiles | Entered Mines 1220 | -8/Mines | Core integrity fell below 50% 1237 | -8/Mines | Lost 7 parts (1p4n1u1w) 1239 | -8/Mines | Core integrity fell below 20% 1246 | -8/Mines | Discovered new exit (range 3) 1247 | -8/Mines | Identified exit to Materials 1248 | -8/Mines | Entered Materials 1248 | -8/Materials | Evolved 2 slots: Power x1, Utility x1 1381 | -8/Materials | Self-destructed Last Messages --------------- 01263_ K-01 Serf collects debris. 01266_ Acquired Titanium Leg. 01267_ K-01 Serf collects debris. 01269_ Acquired Titanium Leg. 01271_ K-01 Serf collects debris. 01272_ Acquired Titanium Leg. 01275_ K-01 Serf collects debris. 01283_ K-01 Serf cleans the Terminal. 01287_ K-01 Serf collects debris. 01290_ K-01 Serf cleans the Terminal. 01297_ K-01 Serf collects debris. 01350_ W-25 Informer distress signal alerts nearby ally. 01350_ O-24 Administrator: "IFF HANDSHAKE FAILED. SECURING TERMINAL." 01355_ ALERT: Hostiles spotted, dispatching reinforcements to Terminal M004. 01379_ ALERT: Hostiles spotted, dispatching reinforcements to Terminal M001. 01379_ Critical hit (Burn: +37). 01380_ Slug penetrates Integration Channel. 01380_ Integration Channel disabled. Map ----- +----------------------------------------------------+ | | | | | | | | | | | | | | | | | | | | | | | | | | | ##########???????????????????????????????????????? | | #???????????????????????????????????????? | | #???????????????????????????????????????? | | ] ! #?????????###??###??????????????????????? | | #######???# ]] ?????????????????????? | | + #???# ]] #????????????????????? | | ###+###### #???# ]] #????????????????????? | | ! #???# #????????????????????? | | #??## #????????????????????? | | ####??#Y * """ #????????????????????? | | ######+##?????# """ #????????????????????? | | ## #?????# """ #????????????????????? | | ## #?????# ! @ #????????????????????? | | = ## """ #?????######/###??? #?????????????? | | ##! """ ########## # #?????????????? | | ## """ # # ?????????? | | ## ## # """ / ?????????? | | # ###+#### """"" # s ?????????? | | # # """"" # ss """"" ##?????????? | | # / """"" # """""""" #??????????? | | # # """ #! """ """? ?#??????????? | | # #### # # h ????????????????? | | #######??# # # ?????????????????? | | ?????????# # # ????????????????? | | ?????????+ ########## ! ???????????????? | | ???????? # ???????? ??????????????? | | ??????? # ##???????### #########??????????????? | | ??????""?# #??????????? #??????????????????????? | | ?????"""?# #??????????? #??????????????????????? | | ?????????# #??????????? #??????????????????????? | | ?????????# #??????????? #??????????????????????? | | ?????????# /???????????????????????????????????? | | ????????? #???????????????????????????????????? | | ????????? #???????????????????????????????????? | | ?????????? ????????????????????????????????????? | | ?????????????????????????????????????????????????? | | ?????????????????????????????????????????????????? | +----------------------------------------------------+ Best States ------------- Heat Dissipation 31 Energy Generation 10 Energy Capacity 250 Matter Stores 300 Matter Capacity 300 Sight Range 16 Robot Scan Range 14 Terrain Scan Range 16 Terrain Scan Density 10 Resistance: KI 20 Resistance: TH 20 Resistance: EX 20 Resistance: EM 20 Resistance: I 20 Resistance: S 20 Resistance: P 20 Evasion (%) 63 Offensive Hacking 10 Item Schematics ----------------- None Robot Schematics ------------------ None Fabricated ------------ Nothing Alien Tech Used ----------------- None Achievements -------------- None Challenges ------------ None Game ------ Seed XenonCarbideCoupler Manual? 0 Play Time 00:31:44 Cumulative 14.2 hours Start 2023.03.18 @ 10:58:56 End 2023.03.18 @ 11:42:47 Sessions 1 Manual Loads 0 Difficulty Adventurer Special Mode None Game No. 17 Rogue 0 Adventurer 17 Explorer 0 Win Type - Total 0 Types 0/0/0/0/0/0/0/0/0 Lore% 20 Gallery% 16 Achievement% 16 Wizard Run 0 Options --------- ASCII 0 Keyboard 0 Movement Arrows Keybinds 0 Fullscreen 1 Font 12/Smallcaps Map View 76x50 Tactical HUD 1 Map Filters NONE Filters NONE Steam 1 RUN: b5258979-6c34-4b0c-b58d-6546dae8a3c6